fUSD/lending_fUSD_20240217
["ID","MTS","AMOUNT","RATE_DAILY","PERIOD"]
[314265865,1708128678675,-2628.44,0.00054794,120]
[314265866,1708128678684,-2628.44,0.00054794,120]
[314265867,1708128678694,-2628.44,0.00054794,120]
[314265868,1708128678705,-2628.44,0.00054794,120]
[314265869,1708128678714,-2628.44,0.00054794,120]
[314265870,1708128678724,-2628.44,0.00054794,120]
[314265871,1708128678733,-2628.44,0.00054794,120]
[314265872,1708128678744,-2628.44,0.00054794,120]
[314265873,1708128678754,-2628.44,0.00054794,120]
[314265874,1708128678765,-2628.44,0.00054794,120]
[314265875,1708128678774,-2628.44,0.00054794,120]
[314265876,1708128678784,-2628.44,0.00054794,120]
[314265877,1708128678794,-622.64,0.00054794,120]
[314265878,1708128678804,-2628.65251108,0.00054794,120]
[314265879,1708128678814,-3200.63,0.00054794,120]
[314265880,1708128678823,-3120.9,0.00054794,120]
[314265881,1708128678833,-215.01665104,0.00054794,120]
[314265882,1708128678843,-1144.64,0.00054794,120]
[314265883,1708128678853,-518.28,0.00054794,120]
[314265884,1708128678862,-604.05,0.00054794,120]
[314265885,1708128678872,-500.0,0.00054794,120]
[314265886,1708128678882,-544.3,0.00054794,120]
[314265887,1708128678893,-552.08,0.00054794,120]
[314265888,1708128678903,-557.8,0.00054794,120]
[314265889,1708128678915,-4774.97,0.00054794,120]
[314265890,1708128678924,-1520.33,0.00054794,120]
[314265891,1708128678934,-554.99,0.00054794,120]
[314265892,1708128678943,-847.85,0.00054794,120]
[314265893,1708128678953,-1770.09,0.00054794,120]
[314265894,1708128678963,-504.22,0.00054794,120]
[314265895,1708128678973,-510.83,0.00054794,120]
[314265896,1708128678983,-166.3396773,0.00054794,120]
[314265897,1708128678996,-929.54,0.00054794,120]
[314265898,1708128679008,-1915.59,0.00054794,120]
[314265899,1708128679017,-1207.5,0.00054794,14]
[314265900,1708128679027,-1080.07,0.00054794,120]
[314265901,1708128679039,-582.19,0.00054794,120]
[314265902,1708128679049,-1574.44,0.00054794,120]
[314265903,1708128679059,-500.0,0.00054794,120]
[314265904,1708128679070,-771.67,0.00054794,120]
[314265905,1708128679080,-702.82,0.00054794,120]
[314265906,1708128679091,-873.36,0.00054794,120]
[314265907,1708128679100,-2083.77,0.00054794,120]
[314265908,1708128679109,-12341.22,0.00054794,120]
[314265909,1708128679119,-1134.85,0.00054794,120]
[314265910,1708128679130,-545.22,0.00054794,120]
[314265911,1708128679139,-375.28455139,0.00054794,60]
[314265912,1708128679149,-671.61,0.00054794,120]
[314265913,1708128679161,-500.0,0.00054794,120]
[314265914,1708128679172,-500.0,0.00054795,120]
[314265915,1708128679182,-149142.78,0.00054795,30]
[314265916,1708128679191,-169.48,0.00054795,30]
[314265917,1708128679201,-500.0,0.00054795,120]
[314265918,1708128679211,-500.0,0.00054795,120]
[314265919,1708128679220,-500.0,0.00054795,120]
[314265920,1708128679230,-500.0,0.00054795,120]
[314265921,1708128679241,-500.0,0.00054795,120]
[314265922,1708128679251,-621.02546428,0.00054795,120]
[314265923,1708128679261,-200.0,0.000548,120]
[314265924,1708128679271,-173.72,0.000548,30]
[314265925,1708128679281,-2000.0,0.000548,120]
[314265926,1708128679291,-5000.0,0.000548,120]
[314265927,1708128679301,-598.52835785,0.00054888,120]
[314265928,1708128679310,-217.0,0.0005489,30]
[314265929,1708128679320,-216.0,0.0005489,30]
[314265930,1708128679329,-1000.0,0.00054899,2]
[314265931,1708128679339,-1000.0,0.00054899,120]
[314265932,1708128679348,-1017.0,0.000549,120]
[314265933,1708128679358,-200.0,0.000549,31]
[314265934,1708128679368,-5447.85802238,0.000549,80]
[314265935,1708128679377,-8828.03283441,0.000549,50]
[314265936,1708128679386,-233384.66963566,0.000549,30]
[314265937,1708128679396,-836.56588,0.000549,30]
[314265938,1708128679407,-12091.31975166,0.000549,30]
[314265939,1708128679416,-150.0,0.000549,30]
[314265940,1708128679426,-545.0,0.000549,2]
[314265941,1708128679436,-604.0,0.00054914,7]
[314265942,1708128679446,-185.36384389,0.0005495,120]
[314265943,1708128679456,-75437.3379,0.0005497,120]
[314265944,1708128679466,-200.0,0.00054987,99]
[314265945,1708128679476,-200.0,0.00054987,93]
[314265946,1708128679486,-200.0,0.00054987,87]
[314265947,1708128679496,-248.16852788,0.00054992,14]
[314265948,1708128679506,-207.21148723,0.00054992,14]
[314265949,1708128679515,-1966.58273554,0.00054999,120]
[314265950,1708128679528,-41889.62876603,0.00054999,40]
[314265951,1708128679538,-100000.0,0.00055,45]
[314265952,1708128679548,-166.46078244,0.00055,120]
[314265953,1708128679557,-250.0,0.00055,120]
[314265954,1708128679567,-218.79190081,0.00055,4]
[314265955,1708128679577,-220.47050465,0.00055,4]
[314265956,1708128679587,-168.01757149,0.00055,4]
[314265957,1708128679598,-905.111253,0.00055,30]
[314265958,1708128679607,-313.95855658,0.00055,55]
[314265959,1708128679617,-1082.83717105,0.00055,60]
[314265960,1708128679626,-165.0,0.00055,120]
[314265961,1708128679790,-15000.0,0.00055,7]
[314265962,1708128679812,-259.09,0.00055,30]
[314265963,1708128679821,-1000.0,0.00055,120]
[314265964,1708128679831,-5000.0,0.00055,120]
[314265965,1708128679841,-34591.36142781,0.00055,30]
[314265966,1708128679857,-14591.6048551,0.00055,30]
[314265967,1708128679866,-613.98747054,0.00055,120]
[314265968,1708128679875,-3000.0,0.00055,120]
[314265969,1708128679885,-2172.45973978,0.00055,60]
[314265970,1708128679895,-151.5,0.00055,80]
[314265971,1708128679904,-1005.77878195,0.00055,90]
[314265972,1708128679914,-236917.1212182,0.00055,30]
[314265973,1708128679932,-500.0,0.00052054,60]
[314265974,1708128679942,-4591.95006226,0.00055,30]
[314265975,1708128679953,-875.59956804,0.00055,30]
[314265976,1708128679983,-604.0856,0.00055,30]
[314265977,1708128680176,-1290.0,0.00043264,2]
[314265978,1708128680197,-547.10205551,0.00043264,2]
[314265979,1708128949627,-155.0,0.00031805,4]
[314265980,1708128949654,-150.0,0.00031806,2]
[314265981,1708128949678,-9695.0,0.00031807,2]
[314265982,1708128953901,-10000.0,0.00031807,2]
[314265983,1708128957912,-2133.3316,0.00031807,2]
[314265984,1708128983436,-150.0,0.00034987,2]
[314265985,1708129014994,155.0,0.00034987,4]
[314265986,1708129028988,155.0,0.00034987,4]
[314265987,1708129048983,155.0,0.00034987,4]
[314265988,1708129066577,193.85651043,0.00034987,4]
[314265989,1708129191503,4115.12,0.00035,2]
[314265990,1708129591466,-208.20948336,0.000379,2]
[314265991,1708129591492,-155.64988527,0.000379,2]
[314265992,1708129591520,-3759.44264388,0.00037987,11]
[314265993,1708129591546,-5876.69798749,0.00038,11]
[314265994,1708129599236,-1196.81060391,0.00038,11]
[314265995,1708129599264,-4045.37899811,0.00038,11]
[314265996,1708129599288,-2540.0,0.000388,3]
[314265997,1708129599313,-2217.81039798,0.000389,3]
[314265998,1708129605140,-349.78561995,0.000389,3]
[314265999,1708129607375,-10000.0,0.00038898,4]
[314266000,1708129657905,10000.0,0.00028,120]
[314266001,1708129657929,10000.0,0.00028,120]
[314266002,1708129657953,5076.02348957,0.00028,120]
[314266003,1708129657978,10000.0,0.00028,120]
[314266004,1708129658002,25000.0,0.00028,120]
[314266005,1708129658030,25000.0,0.00028,120]
[314266006,1708129658054,15393.08657623,0.00028,120]
[314266007,1708129658077,2000.0,0.00028,120]
[314266008,1708129658104,17530.8899342,0.00028,120]
[314266009,1708129673547,155.0,0.00028,2]
[314266010,1708129673616,7314.1100658,0.00022,120]
[314266011,1708129673640,937.0,0.00022,120]
[314266012,1708129673664,100000.0,0.00022,120]
[314266013,1708129673688,11748.8899342,0.00022,120]
[314266014,1708129682009,1200000.0,0.00022,120]
[314266015,1708129689310,155.0,0.00028,2]
[314266016,1708129701802,333159.50224044,0.0003,120]
[314266017,1708129701853,999602.36,0.0003,120]
[314266018,1708129701877,7000.0,0.0003,120]
[314266019,1708129701899,9394.74282192,0.0003,120]
[314266020,1708129707272,155.0,0.00028,2]
[314266021,1708129727266,155.0,0.00028,2]
[314266024,1708129735800,9196.49602061,0.00028,120]
[314266025,1708129735830,10000.0,0.00028,120]
[314266026,1708129735855,10000.0,0.00028,120]
[314266029,1708129779067,10992.27894794,0.0002,120]
[314266030,1708129779091,10000.0,0.0002,120]
[314266031,1708129779115,45746.0,0.0002,120]
[314266032,1708129779138,175000.0,0.0002,120]
[314266033,1708129779161,10000.0,0.0002,120]
[314266034,1708129779191,5000.0,0.0002,120]
[314266035,1708129779217,243594.72105206,0.0002,120]
[314266042,1708129832143,-155.0,0.00028,2]
[314266043,1708129832154,-170.4098207,0.0003442,2]
[314266044,1708129832164,-18.02057286,0.0003452,2]
[314266045,1708129832177,-379.11751414,0.0003452,2]
[314266046,1708129832186,-122.20601807,0.0003452,2]
[314266047,1708129832197,-948.21495962,0.0003452,2]
[314266048,1708129832217,-1216.64568931,0.0003452,2]
[314266049,1708129832226,-595.70713,0.00034794,2]
[314266050,1708129832234,-3430.6,0.00034794,2]
[314266051,1708129832244,-794.276174,0.00034931,2]
[314266052,1708129832253,-4574.133334,0.00034931,2]
[314266053,1708129832262,-992.845217,0.00035068,2]
[314266054,1708129832272,-5717.666668,0.00035068,2]
[314266055,1708129832282,-538.065654,0.00035242,2]
[314266056,1708129832291,-187.14142258,0.0003533,2]
[314266057,1708129832299,-907678.19631225,0.0003534,4]
[314266058,1708129832308,-1389.983304,0.00035342,2]
[314266059,1708129832317,-8004.733335,0.00035342,2]
[314266060,1708129832326,-1588.552348,0.00036,2]
[314266061,1708129832336,-9148.266668,0.00036,2]
[314266062,1708129832345,-1532.23215439,0.000388,9]
[314266063,1708129832354,-4186.40398207,0.000389,3]
[314266064,1708129832365,-4940.61,0.000389,2]
[314266065,1708129832374,-499.99,0.000389,2]
[314266066,1708129832383,-241.89580262,0.00039899,31]
[314266067,1708129832392,-155.64988521,0.00040733,2]
[314266068,1708129832400,-67495.5587719,0.0004089,6]
[314266069,1708129832410,-307.22,0.000409,2]
[314266070,1708129832419,-150.0,0.00040908,120]
[314266071,1708129832428,-154.13,0.000416,4]
[314266072,1708129832438,-1532.23215434,0.00041814,10]
[314266073,1708129832447,-321.6623879,0.000419,14]
[314266074,1708129832456,-447.41497558,0.00042,4]
[314266075,1708129832465,-965.23195016,0.00042,7]
[314266076,1708129832474,-2481.25926458,0.00042237,4]
[314266077,1708129832483,-2582.14,0.00042238,2]
[314266078,1708129832493,-434.31,0.00042544,2]
[314266079,1708129832502,-310.0,0.0004306,4]
[314266080,1708129832512,-378.605,0.00043061,5]
[314266081,1708129832522,-332.5,0.00043362,2]
[314266082,1708129832532,-1000.0,0.00043399,2]
[314266083,1708129832541,-283.35,0.00043436,2]
[314266084,1708129832551,-155.64988521,0.00043567,2]
[314266085,1708129832560,-200.0,0.00044043,30]
[314266086,1708129832569,-1472.4141,0.00044093,120]
[314266087,1708129832578,-2705.0,0.00044193,120]
[314266088,1708129832588,-152.16,0.00044197,2]
[314266089,1708129832597,-154.13,0.000443,5]
[314266090,1708129832606,-250.0,0.00044419,120]
[314266091,1708129832615,-150.0,0.00044498,2]
[314266092,1708129832625,-682.93,0.0004453,2]
[314266093,1708129832634,-222.345,0.00044538,2]
[314266094,1708129832643,-2871.0,0.00044538,2]
[314266095,1708129832652,-2000.0,0.00044544,120]
[314266096,1708129832662,-250.0,0.00044601,2]
[314266097,1708129832671,-349.39,0.00044603,15]
[314266098,1708129832680,-200.0,0.00044614,120]
[314266099,1708129832690,-633.38361043,0.00044708,6]
[314266100,1708129832699,-434.31,0.00044808,2]
[314266101,1708129832708,-1532.23215434,0.00044829,12]
[314266102,1708129832716,-1342.32,0.00044853,2]
[314266103,1708129832726,-200.0,0.00044864,25]
[314266104,1708129832735,-250.0,0.00044898,111]
[314266105,1708129832744,-917.06,0.00044932,2]
[314266106,1708129832753,-15620.74,0.00044932,2]
[314266107,1708129832762,-1342.32,0.00045112,2]
[314266108,1708129832772,-1342.32,0.00045371,2]
[314266109,1708129832781,-1342.32,0.0004563,2]
[314266110,1708129832790,-150.0,0.00045789,2]
[314266111,1708129832801,-1342.32,0.00045889,2]
[314266112,1708129832811,-2914.84936754,0.00045906,2]
[314266113,1708129832820,-215.59013852,0.00046084,7]
[314266114,1708129832829,-242.27481455,0.00046084,7]
[314266115,1708129832838,-2290.81633754,0.00046084,7]
[314266116,1708129832847,-1347.39623368,0.00046084,7]
[314266117,1708129832856,-2067.36981168,0.00046084,7]
[314266118,1708129832865,-1342.32,0.00046148,2]
[314266119,1708129832875,-155.64988521,0.000464,2]
[314266120,1708129832884,-1342.32,0.00046407,2]
[314266121,1708129832893,-1342.32,0.00046667,2]
[314266122,1708129832903,-1725.0,0.000467,115]
[314266123,1708129832912,-347.0,0.000467,30]
[314266124,1708129832921,-171.08,0.00046863,2]
[314266125,1708129832930,-1342.32,0.00046926,2]
[314266126,1708129832939,-154.13,0.00047,5]
[314266127,1708129832948,-434.31,0.00047072,2]
[314266128,1708129832957,-633.38361039,0.00047129,8]
[314266129,1708129832966,-150.0,0.00047158,2]
[314266130,1708129832975,-1342.32,0.00047185,2]
[314266131,1708129832984,-200.0,0.00047515,20]
[314266132,1708129832993,-200.0,0.00047515,30]
[314266133,1708129833003,-2662.999,0.00047538,2]
[314266134,1708129833013,-156.65,0.00047657,2]
[314266135,1708129833023,-1532.23215434,0.00047843,13]
[314266136,1708129833032,-349.39,0.00048339,120]
[314266137,1708129833041,-180.0,0.00048654,2]
[314266138,1708129833050,-67495.5587719,0.0004869,11]
[314266139,1708129833060,-78750.7696,0.000487,2]
[314266140,1708129833068,-1000.0,0.000488,2]
[314266141,1708129833077,-1000.0,0.00048824,2]
[314266142,1708129833086,-4000.0,0.00049,2]
[314266143,1708129833095,-155.64988521,0.00049233,2]
[314266144,1708129833105,-500.0,0.00049315,2]
[314266145,1708129833114,-500.0,0.00049315,2]
[314266146,1708129833123,-500.0,0.00049315,60]
[314266147,1708129833132,-500.0,0.00049315,60]
[314266148,1708129833141,-1203.6,0.00049315,60]
[314266149,1708129833150,-551.22841274,0.00049315,60]
[314266150,1708129833160,-500.0,0.00049315,60]
[314266151,1708129833170,-500.0,0.00049315,60]
[314266152,1708129833179,-621.78,0.00049315,60]
[314266153,1708129833190,-500.0,0.00049315,60]
[314266154,1708129833199,-1246.43,0.00049315,60]
[314266155,1708129833208,-500.0,0.00049315,60]
[314266156,1708129833218,-469.18688744,0.00049315,60]
[314266157,1708129833227,-500.0,0.00049315,60]
[314266158,1708129833236,-500.0,0.00049315,60]
[314266159,1708129833245,-1596.32,0.00049315,60]
[314266160,1708129833254,-310.34,0.00049315,60]
[314266161,1708129833264,-500.0,0.00049315,60]
[314266162,1708129833273,-500.0,0.00049315,60]
[314266163,1708129833282,-500.0,0.00049315,60]
[314266164,1708129833294,-500.0,0.00049315,60]
[314266165,1708129833303,-614.97,0.00049315,60]
[314266166,1708129833312,-4240.9,0.00049315,60]
[314266167,1708129833323,-10798.57,0.00049315,60]
[314266168,1708129833333,-500.0,0.00049315,60]
[314266169,1708129833343,-500.0,0.00049315,60]
[314266170,1708129833351,-588.43,0.00049315,60]
[314266171,1708129833361,-500.0,0.00049315,60]
[314266172,1708129833370,-500.0,0.00049315,60]
[314266173,1708129833379,-500.0,0.00049315,60]
[314266174,1708129833388,-500.0,0.00049315,60]
[314266175,1708129833397,-800.0,0.00049315,30]
[314266176,1708129833406,-434.31,0.00049336,2]
[314266177,1708129833417,-901.77,0.0004941,2]
[314266178,1708129833426,-633.38361039,0.00049551,11]
[314266179,1708129833435,-571.90067761,0.00049589,2]
[314266180,1708129833445,-500.0,0.00049589,2]
[314266181,1708129833454,-500.0,0.00049589,60]
[314266182,1708129833463,-500.0,0.00049589,60]
[314266183,1708129833473,-1203.6,0.00049589,60]
[314266184,1708129833482,-500.0,0.00049589,60]
[314266185,1708129833491,-500.0,0.00049589,60]
[314266186,1708129833501,-500.0,0.00049589,60]
[314266187,1708129833511,-1246.43,0.00049589,60]
[314266188,1708129833520,-500.0,0.00049589,60]
[314266189,1708129833530,-500.0,0.00049589,60]
[314266190,1708129833540,-500.0,0.00049589,60]
[314266191,1708129833549,-1596.32,0.00049589,60]
[314266192,1708129833558,-500.0,0.00049589,60]
[314266193,1708129833568,-500.0,0.00049589,60]
[314266194,1708129833577,-646.18,0.00049589,60]
[314266195,1708129833587,-500.0,0.00049589,60]
[314266196,1708129833597,-614.97,0.00049589,60]
[314266197,1708129833606,-4240.9,0.00049589,60]
[314266198,1708129833616,-10798.57,0.00049589,60]
[314266199,1708129833626,-500.0,0.00049589,60]
[314266200,1708129833635,-209.91208146,0.00049589,60]
[314266201,1708129833644,-588.43,0.00049589,60]
[314266202,1708129833654,-187.77,0.00049589,60]
[314266203,1708129833664,-500.0,0.00049589,60]
[314266204,1708129833673,-500.0,0.00049589,60]
[314266205,1708129833683,-500.0,0.00049589,60]
[314266206,1708129833692,-154.13,0.000497,6]
[314266207,1708129833701,-1000.0,0.000498,2]
[314266208,1708129833711,-10784.423,0.000498,2]
[314266209,1708129833720,-852.8636,0.000498,2]
[314266210,1708129833730,-1897.5,0.00049829,117]
[314266211,1708129833739,-500.0,0.00049863,2]
[314266212,1708129833748,-500.0,0.00049863,60]
[314266213,1708129833757,-500.0,0.00049863,60]
[314266214,1708129833766,-1203.6,0.00049863,60]
[314266215,1708129833776,-500.0,0.00049863,60]
[314266216,1708129833786,-500.0,0.00049863,60]
[314266217,1708129833796,-500.0,0.00049863,60]
[314266218,1708129833805,-1246.43,0.00049863,60]
[314266219,1708129833814,-500.0,0.00049863,60]
[314266220,1708129833824,-321.17993873,0.00049863,60]
[314266221,1708129833833,-614.52,0.00049863,60]
[314266222,1708129833844,-1596.32,0.00049863,60]
[314266223,1708129833856,-500.0,0.00049863,60]
[314266224,1708129833866,-500.0,0.00049863,60]
[314266225,1708129833876,-500.0,0.00049863,60]
[314266226,1708129833885,-614.97,0.00049863,60]
[314266227,1708129833895,-4240.9,0.00049863,60]
[314266228,1708129833904,-10798.57,0.00049863,60]
[314266229,1708129833915,-500.0,0.00049863,60]
[314266230,1708129833924,-588.43,0.00049863,60]
[314266231,1708129833934,-500.0,0.00049863,60]
[314266232,1708129833944,-500.0,0.00049863,60]
[314266233,1708129833953,-500.0,0.00049863,60]
[314266234,1708129833963,-500.0,0.00049899,60]
[314266235,1708129833972,-647.97,0.00049899,60]
[314266236,1708129833982,-500.0,0.00049899,60]
[314266237,1708129833991,-500.0,0.00049899,60]
[314266238,1708129834001,-500.0,0.00049899,60]
[314266239,1708129834010,-500.0,0.00049899,60]
[314266240,1708129834020,-658.42,0.00049899,60]
[314266241,1708129834030,-500.0,0.00049899,60]
[314266242,1708129834039,-855.06,0.00049899,60]
[314266243,1708129834049,-500.0,0.00049899,60]
[314266244,1708129834058,-806.06,0.00049899,60]
[314266245,1708129834068,-500.0,0.00049899,60]
[314266246,1708129834077,-500.0,0.00049899,60]
[314266247,1708129834086,-500.0,0.00049899,60]
[314266248,1708129834095,-500.0,0.00049899,60]
[314266249,1708129834107,-273.75570157,0.00049899,60]
[314266250,1708129834117,-500.0,0.00049899,60]
[314266251,1708129834126,-190.35,0.00049899,60]
[314266252,1708129834136,-3225.49974593,0.000499,2]
[314266253,1708129834150,-811.05669613,0.000499,2]
[314266254,1708129834162,-3658.5963647,0.000499,2]
[314266255,1708129834175,-261.52379354,0.000499,2]
[314266256,1708129834191,-437.93269508,0.000499,2]
[314266257,1708129834202,-970.5346668,0.000499,2]
[314266258,1708129834214,-591.53263812,0.000499,2]
[314266259,1708129834226,-253.68752651,0.000499,2]
[314266260,1708129834238,-496.20108709,0.000499,2]
[314266261,1708129834249,-318.74363918,0.000499,2]
[314266262,1708129834261,-588.94638895,0.000499,2]
[314266263,1708129834277,-516.2939322,0.000499,2]
[314266264,1708129834289,-21348.6544802,0.000499,2]
[314266265,1708129834300,-1592.56020646,0.000499,2]
[314266267,1708129838176,-512.29822478,0.000462,30]
[314266268,1708129838233,-487.70177522,0.000462,30]
[314266269,1708129838242,-500.0,0.00049899,60]
[314266270,1708129838252,-336.99939546,0.00049899,120]
[314266271,1708129838261,-46010.63913911,0.000499,2]
[314266272,1708129838271,-596.32987594,0.000499,120]
[314266273,1708129838281,-67495.5587719,0.00049989,11]
[314266274,1708129838290,-500.0,0.00049999,30]
[314266275,1708129838299,-500.0,0.00049999,60]
[314266276,1708129838308,-500.0,0.00049999,60]
[314266277,1708129838318,-500.0,0.00049999,60]
[314266278,1708129838328,-182.45321628,0.00049999,60]
[314266279,1708129838338,-500.0,0.00049999,60]
[314266280,1708129838348,-500.0,0.00049999,60]
[314266281,1708129838358,-304.1124606,0.00049999,60]
[314266283,1708129838367,-500.0,0.00049999,60]
[314266285,1708129838377,-800.16,0.00049999,60]
[314266287,1708129838387,-500.0,0.00049999,60]
[314266289,1708129838396,-500.0,0.00049999,60]
[314266290,1708129838407,-500.0,0.00049999,60]
[314266291,1708129838417,-520.94,0.00049999,60]
[314266292,1708129838426,-500.0,0.00049999,60]
[314266293,1708129838436,-590.03,0.00049999,60]
[314266294,1708129838445,-500.0,0.00049999,60]
[314266295,1708129838455,-500.0,0.00049999,60]
[314266296,1708129838464,-500.0,0.00049999,60]
[314266297,1708129838474,-522.44,0.00049999,60]
[314266298,1708129838483,-500.0,0.00049999,60]
[314266299,1708129838493,-500.0,0.00049999,60]
[314266300,1708129838503,-500.0,0.00049999,60]
[314266301,1708129838513,-500.0,0.00049999,60]
[314266302,1708129838524,-500.0,0.00049999,60]
[314266303,1708129838533,-500.0,0.00049999,60]
[314266304,1708129838544,-500.0,0.00049999,60]
[314266305,1708129838554,-500.0,0.00049999,60]
[314266306,1708129838564,-244.13,0.00049999,60]
[314266307,1708129838574,-898.43,0.00049999,60]
[314266308,1708129838584,-500.0,0.00049999,60]
[314266309,1708129838596,-500.0,0.00049999,60]
[314266310,1708129838606,-500.0,0.00049999,60]
[314266311,1708129838616,-500.0,0.00049999,60]
[314266312,1708129838625,-500.0,0.00049999,60]
[314266313,1708129838636,-500.0,0.00049999,60]
[314266314,1708129838646,-500.0,0.00049999,60]
[314266315,1708129838655,-500.0,0.00049999,60]
[314266316,1708129838665,-906.17,0.00049999,60]
[314266317,1708129838675,-372.67967509,0.00049999,60]
[314266318,1708129838685,-500.0,0.00049999,60]
[314266319,1708129838695,-500.0,0.00049999,60]
[314266320,1708129838705,-3972.3,0.00049999,60]
[314266321,1708129838715,-500.0,0.00049999,60]
[314266322,1708129838725,-500.0,0.00049999,60]
[314266323,1708129838735,-522.42,0.00049999,60]
[314266324,1708129838745,-500.0,0.00049999,60]
[314266325,1708129838755,-656.94,0.00049999,60]
[314266326,1708129838765,-500.0,0.00049999,60]
[314266327,1708129838775,-500.0,0.00049999,60]
[314266328,1708129838784,-1056.56,0.00049999,14]
[314266329,1708129838794,-389.43,0.00049999,60]
[314266330,1708129838804,-518.87,0.00049999,60]
[314266331,1708129838814,-675.21,0.00049999,60]
[314266332,1708129838823,-2600.75,0.00049999,60]
[314266333,1708129838833,-500.0,0.00049999,2]
[314266334,1708129838842,-500.0,0.00049999,60]
[314266335,1708129838852,-33770.0,0.0005,12]
[314266336,1708129838862,-1161.157,0.0005,120]
[314266337,1708129838872,-1161.158,0.0005,120]
[314266338,1708129838882,-1161.158,0.0005,120]
[314266339,1708129838892,-1161.158,0.0005,120]
[314266340,1708129838901,-1161.158,0.0005,120]
[314266341,1708129838911,-500.0,0.00050136,2]
[314266342,1708129838922,-500.0,0.00050136,60]
[314266343,1708129838932,-500.0,0.00050136,60]
[314266344,1708129838942,-1203.6,0.00050136,60]
[314266345,1708129838952,-500.0,0.00050136,60]
[314266346,1708129838962,-500.0,0.00050136,60]
[314266347,1708129838972,-500.0,0.00050136,60]
[314266348,1708129838982,-1246.43,0.00050136,60]
[314266349,1708129838991,-500.0,0.00050136,60]
[314266350,1708129839001,-1596.32,0.00050136,60]
[314266351,1708129839011,-500.0,0.00050136,60]
[314266352,1708129839022,-500.0,0.00050136,60]
[314266353,1708129839034,-500.0,0.00050136,60]
[314266354,1708129839044,-614.97,0.00050136,60]
[314266355,1708129839055,-4240.9,0.00050136,60]
[314266356,1708129839066,-10798.57,0.00050136,60]
[314266357,1708129839076,-500.0,0.00050136,60]
[314266358,1708129839086,-588.43,0.00050136,60]
[314266359,1708129839096,-500.0,0.00050136,60]
[314266360,1708129839107,-500.0,0.00050136,60]
[314266361,1708129839117,-500.0,0.00050136,60]
[314266362,1708129839127,-500.0,0.00050173,60]
[314266363,1708129839137,-500.0,0.00050173,60]
[314266364,1708129839147,-500.0,0.00050173,60]
[314266365,1708129839158,-500.0,0.00050173,60]
[314266366,1708129839168,-500.0,0.00050173,60]
[314266367,1708129839178,-658.42,0.00050173,60]
[314266368,1708129839190,-500.0,0.00050173,60]
[314266369,1708129839200,-855.06,0.00050173,60]
[314266370,1708129839372,-500.0,0.00050173,60]
[314266371,1708129839383,-806.06,0.00050173,60]
[314266372,1708129839393,-500.0,0.00050173,60]
[314266373,1708129839403,-500.0,0.00050173,60]
[314266374,1708129839412,-500.0,0.00050173,60]
[314266375,1708129839422,-500.0,0.00050173,60]
[314266376,1708129839432,-500.0,0.00050173,60]
[314266377,1708129839442,-512.57,0.00050173,60]
[314266378,1708129839451,-500.0,0.00050273,60]
[314266379,1708129839461,-500.0,0.00050273,60]